[Event "*** Titled Tuesday Blitz"]
[Site "Chess.com"]
[Date "2020.03.03"]
[Round "6"]
[White "SCIM"]
[Black "ChelsieMonica"]
[Result "0-1"]
[WhiteElo "2472"]
[BlackElo "2187"]
[TimeControl "180+1"]
[EndTime "14:01:11 PST"]
[Termination "ChelsieMonica won on time"]

1. d4 {[%clk 0:02:26.1]} 1... Nf6 {[%clk 0:02:58.7]} 2. c4 {[%clk 0:02:27]} 2...
e6 {[%clk 0:02:58.4]} 3. g3 {[%clk 0:02:27.6]} 3... Be7 {[%clk 0:02:56.8]} 4.
Nf3 {[%clk 0:02:28.5]} 4... O-O {[%clk 0:02:57.5]} 5. Bg2 {[%clk 0:02:28.5]}
5... d5 {[%clk 0:02:58.4]} 6. O-O {[%clk 0:02:28.8]} 6... c5 {[%clk 0:02:52.9]}
7. dxc5 {[%clk 0:02:27.4]} 7... Bxc5 {[%clk 0:02:52.7]} 8. Qc2 {[%clk
0:02:27.9]} 8... Nc6 {[%clk 0:02:52.2]} 9. cxd5 {[%clk 0:02:26.4]} 9... Qxd5
{[%clk 0:02:46.3]} 10. Nc3 {[%clk 0:02:17.8]} 10... Qh5 {[%clk 0:02:44.6]} 11.
Bg5 {[%clk 0:02:11.7]} 11... Nd4 {[%clk 0:02:39.7]} 12. Nxd4 {[%clk 0:02:06.6]}
12... Bxd4 {[%clk 0:02:38.7]} 13. h4 {[%clk 0:01:58.4]} 13... Qg6 {[%clk
0:02:24.1]} 14. Qxg6 {[%clk 0:01:50.8]} 14... hxg6 {[%clk 0:02:16]} 15. Rfd1
{[%clk 0:01:50.1]} 15... e5 {[%clk 0:02:12.8]} 16. Rac1 {[%clk 0:01:38.1]} 16...
Be6 {[%clk 0:02:08.7]} 17. e3 {[%clk 0:01:32.7]} 17... Bb6 {[%clk 0:02:04.8]}
18. Bxb7 {[%clk 0:01:30.6]} 18... Rab8 {[%clk 0:02:03.4]} 19. Bg2 {[%clk
0:01:29.2]} 19... Nh7 {[%clk 0:02:00.5]} 20. Be7 {[%clk 0:01:26.2]} 20... Rfe8
{[%clk 0:01:59.9]} 21. Ba3 {[%clk 0:01:25.7]} 21... Bg4 {[%clk 0:01:58.5]} 22.
Rd2 {[%clk 0:01:21.5]} 22... Nf6 {[%clk 0:01:56.3]} 23. Nd5 {[%clk 0:01:13.6]}
23... Rbd8 {[%clk 0:01:49.5]} 24. Nxf6+ {[%clk 0:01:05.3]} 24... gxf6 {[%clk
0:01:48.1]} 25. Bd5 {[%clk 0:01:03.3]} 25... Bf3 {[%clk 0:01:40.7]} 26. e4
{[%clk 0:00:44.4]} 26... f5 {[%clk 0:01:41]} 27. Rc6 {[%clk 0:00:29.6]} 27...
Kg7 {[%clk 0:01:31.1]} 28. Rd3 {[%clk 0:00:16.5]} 28... fxe4 {[%clk 0:01:30.3]}
29. Rxf3 {[%clk 0:00:09.2]} 29... exf3 {[%clk 0:01:29.8]} 30. Bxf3 {[%clk
0:00:10.1]} 30... e4 {[%clk 0:01:28.1]} 31. Be2 {[%clk 0:00:08.7]} 31... Rd2
{[%clk 0:01:25.7]} 32. Kf1 {[%clk 0:00:08.2]} 32... Re6 {[%clk 0:01:19.2]} 33.
Rc4 {[%clk 0:00:05]} 33... Rf6 {[%clk 0:01:17.4]} 34. f4 {[%clk 0:00:01.3]}
34... exf3 {[%clk 0:01:16.6]} 0-1

[Event "*** Titled Tuesday Blitz"]
[Site "Chess.com"]
[Date "2020.03.03"]
[Round "6"]
[White "ehrenfeld"]
[Black "davigator"]
[Result "0-1"]
[WhiteElo "2471"]
[BlackElo "2323"]
[TimeControl "180+1"]
[EndTime "14:01:11 PST"]
[Termination "davigator won on time"]

1. e4 {[%clk 0:03:00.9]} 1... c5 {[%clk 0:02:58.8]} 2. d3 {[%clk 0:03:00.6]}
2... g6 {[%clk 0:02:57.6]} 3. f4 {[%clk 0:03:00.6]} 3... Bg7 {[%clk 0:02:57.6]}
4. Nf3 {[%clk 0:03:00.7]} 4... d6 {[%clk 0:02:56.9]} 5. Be2 {[%clk 0:03:00.8]}
5... Nc6 {[%clk 0:02:57]} 6. O-O {[%clk 0:03:01.1]} 6... e6 {[%clk 0:02:57.2]}
7. c3 {[%clk 0:03:00.9]} 7... Nge7 {[%clk 0:02:56.9]} 8. Be3 {[%clk 0:03:01]}
8... O-O {[%clk 0:02:56.8]} 9. d4 {[%clk 0:03:01.1]} 9... b6 {[%clk 0:02:56.6]}
10. Na3 {[%clk 0:02:57.9]} 10... a6 {[%clk 0:02:55.2]} 11. Qd2 {[%clk
0:02:26.1]} 11... Qc7 {[%clk 0:02:51.2]} 12. Rad1 {[%clk 0:02:22.8]} 12... Rd8
{[%clk 0:02:50.2]} 13. Nc2 {[%clk 0:02:18.6]} 13... Bb7 {[%clk 0:02:48.4]} 14.
Qe1 {[%clk 0:02:18]} 14... Na5 {[%clk 0:02:43.3]} 15. Qh4 {[%clk 0:02:13.3]}
15... Bxe4 {[%clk 0:02:26.5]} 16. Ng5 {[%clk 0:01:09.9]} 16... Bxc2 {[%clk
0:02:25.1]} 17. Qxh7+ {[%clk 0:01:09.7]} 17... Kf8 {[%clk 0:02:26]} 18. Rd2
{[%clk 0:01:06.9]} 18... Bf5 {[%clk 0:02:10.4]} 19. g4 {[%clk 0:01:03.9]} 19...
f6 {[%clk 0:02:07.2]} 20. gxf5 {[%clk 0:00:56.7]} 20... fxg5 {[%clk 0:02:06.9]}
21. f6 {[%clk 0:00:54.6]} 21... Nf5 {[%clk 0:02:00.5]} 22. fxg5 {[%clk
0:00:46.5]} 22... Ra7 {[%clk 0:01:54.7]} 23. Bg4 {[%clk 0:00:17.7]} 23... Qf7
{[%clk 0:01:53.4]} 24. Bxf5 {[%clk 0:00:14.3]} 24... exf5 {[%clk 0:01:52.7]} 25.
fxg7+ {[%clk 0:00:08.7]} 25... Qxg7 {[%clk 0:01:52.2]} 26. Qh4 {[%clk
0:00:08.7]} 26... Nc4 {[%clk 0:01:50]} 27. Re2 {[%clk 0:00:08]} 27... Re8 {[%clk
0:01:46.3]} 28. Rfe1 {[%clk 0:00:08]} 28... Rae7 {[%clk 0:01:45.5]} 29. Qf2
{[%clk 0:00:06.6]} 29... Nxe3 {[%clk 0:01:43.4]} 30. Rxe3 {[%clk 0:00:05.6]}
30... cxd4 {[%clk 0:01:41.2]} 31. Rxe7 {[%clk 0:00:05]} 31... Rxe7 {[%clk
0:01:40.8]} 32. Rxe7 {[%clk 0:00:05.1]} 32... Kxe7 {[%clk 0:01:41]} 33. cxd4
{[%clk 0:00:03.9]} 33... Kd7 {[%clk 0:01:39.4]} 34. h4 {[%clk 0:00:03.3]} 34...
Qf7 {[%clk 0:01:37.6]} 35. Qe2 {[%clk 0:00:02.3]} 35... b5 {[%clk 0:01:35.5]}
36. Kh2 {[%clk 0:00:01.3]} 36... Qxa2 {[%clk 0:01:28.2]} 0-1

[Event "*** Titled Tuesday Blitz"]
[Site "Chess.com"]
[Date "2020.03.03"]
[Round "6"]
[White "Witaliss"]
[Black "DinaBelenkaya"]
[Result "1-0"]
[WhiteElo "2434"]
[BlackElo "2280"]
[TimeControl "180+1"]
[EndTime "14:01:15 PST"]
[Termination "Witaliss won on time"]

1. d4 {[%clk 0:03:00.9]} 1... Nf6 {[%clk 0:02:57.8]} 2. Nf3 {[%clk 0:03:00.5]}
2... e6 {[%clk 0:02:53.9]} 3. c4 {[%clk 0:02:59.4]} 3... Bb4+ {[%clk 0:02:52.1]}
4. Nbd2 {[%clk 0:02:58.5]} 4... d6 {[%clk 0:02:49.7]} 5. a3 {[%clk 0:02:57.1]}
5... Bxd2+ {[%clk 0:02:44.2]} 6. Qxd2 {[%clk 0:02:57.1]} 6... Nbd7 {[%clk
0:02:42.1]} 7. g3 {[%clk 0:02:57]} 7... O-O {[%clk 0:02:41.6]} 8. Bg2 {[%clk
0:02:56.9]} 8... Qe7 {[%clk 0:02:41.6]} 9. O-O {[%clk 0:02:55.8]} 9... Ne4
{[%clk 0:02:35.7]} 10. Qc2 {[%clk 0:02:54.9]} 10... f5 {[%clk 0:02:35.5]} 11. b4
{[%clk 0:02:52.6]} 11... b6 {[%clk 0:02:30.5]} 12. Ng5 {[%clk 0:02:35]} 12... d5
{[%clk 0:02:05.3]} 13. Nxe4 {[%clk 0:02:33.7]} 13... dxe4 {[%clk 0:02:04.3]} 14.
c5 {[%clk 0:02:29.1]} 14... Nf6 {[%clk 0:01:57.9]} 15. Bf4 {[%clk 0:02:23.3]}
15... Nd5 {[%clk 0:01:49.5]} 16. Be5 {[%clk 0:02:23.1]} 16... Ba6 {[%clk
0:01:47.2]} 17. Rfc1 {[%clk 0:02:16.3]} 17... Rac8 {[%clk 0:01:41.3]} 18. Qd2
{[%clk 0:02:15.6]} 18... Rf7 {[%clk 0:01:22.6]} 19. a4 {[%clk 0:02:14.5]} 19...
bxc5 {[%clk 0:01:16.8]} 20. Rxc5 {[%clk 0:02:07.1]} 20... c6 {[%clk 0:01:13]}
21. Rac1 {[%clk 0:02:03.8]} 21... Qd7 {[%clk 0:01:08]} 22. f3 {[%clk 0:01:55.9]}
22... e3 {[%clk 0:00:57.4]} 23. Qb2 {[%clk 0:01:55.2]} 23... f4 {[%clk
0:00:55.5]} 24. b5 {[%clk 0:01:44.9]} 24... cxb5 {[%clk 0:00:54.7]} 25. Rxc8+
{[%clk 0:01:38.3]} 25... Bxc8 {[%clk 0:00:53.4]} 26. Qxb5 {[%clk 0:01:38.2]}
26... Rf8 {[%clk 0:00:42.2]} 27. Bh3 {[%clk 0:01:32.6]} 27... Qxb5 {[%clk
0:00:38.7]} 28. axb5 {[%clk 0:01:31.8]} 28... Bd7 {[%clk 0:00:39.4]} 29. Rc5
{[%clk 0:01:30.5]} 29... g5 {[%clk 0:00:34.1]} 30. Rxd5 {[%clk 0:01:29.5]} 30...
exd5 {[%clk 0:00:29.4]} 31. Bxd7 {[%clk 0:01:29.1]} 31... Kf7 {[%clk 0:00:28.9]}
32. gxf4 {[%clk 0:01:26.4]} 32... gxf4 {[%clk 0:00:28.5]} 33. Bf5 {[%clk
0:01:18.9]} 33... h6 {[%clk 0:00:20]} 34. Kg2 {[%clk 0:01:10.1]} 1-0

[Event "*** Titled Tuesday Blitz"]
[Site "Chess.com"]
[Date "2020.03.03"]
[Round "6"]
[White "JozefKneht"]
[Black "Everyfishknows"]
[Result "1-0"]
[WhiteElo "2573"]
[BlackElo "2411"]
[TimeControl "180+1"]
[EndTime "14:01:17 PST"]
[Termination "JozefKneht won on time"]

1. e4 {[%clk 0:03:00.9]} 1... e5 {[%clk 0:02:58]} 2. Nf3 {[%clk 0:02:59.5]} 2...
Nc6 {[%clk 0:02:57.1]} 3. Bb5 {[%clk 0:02:58.3]} 3... a6 {[%clk 0:02:56.3]} 4.
Ba4 {[%clk 0:02:57.5]} 4... Nf6 {[%clk 0:02:53.9]} 5. O-O {[%clk 0:02:57.3]}
5... Be7 {[%clk 0:02:38.1]} 6. Re1 {[%clk 0:02:55.2]} 6... b5 {[%clk 0:02:38.2]}
7. Bb3 {[%clk 0:02:53.4]} 7... d6 {[%clk 0:02:38.8]} 8. c3 {[%clk 0:02:53.3]}
8... O-O {[%clk 0:02:36.3]} 9. h3 {[%clk 0:02:49.7]} 9... Bb7 {[%clk 0:02:36]}
10. d4 {[%clk 0:02:48.7]} 10... Re8 {[%clk 0:02:35.2]} 11. Nbd2 {[%clk
0:02:48.2]} 11... Bf8 {[%clk 0:02:32.9]} 12. a4 {[%clk 0:02:47.6]} 12... h6
{[%clk 0:02:31.6]} 13. Bc2 {[%clk 0:02:47.4]} 13... exd4 {[%clk 0:02:31.6]} 14.
cxd4 {[%clk 0:02:48.3]} 14... Nb4 {[%clk 0:02:32]} 15. Bb1 {[%clk 0:02:48.4]}
15... c5 {[%clk 0:02:32.2]} 16. d5 {[%clk 0:02:48.4]} 16... Nd7 {[%clk
0:02:29.7]} 17. Ra3 {[%clk 0:02:47.7]} 17... c4 {[%clk 0:02:01.1]} 18. Nd4
{[%clk 0:02:40.7]} 18... Qf6 {[%clk 0:02:01.4]} 19. N2f3 {[%clk 0:02:37.1]}
19... Nc5 {[%clk 0:02:01.3]} 20. Ree3 {[%clk 0:02:27.7]} 20... Nbd3 {[%clk
0:01:45.2]} 21. axb5 {[%clk 0:02:21.5]} 21... axb5 {[%clk 0:01:43.4]} 22. Nxb5
{[%clk 0:02:16.3]} 22... Rxa3 {[%clk 0:01:31.5]} 23. Nxa3 {[%clk 0:02:13.9]}
23... Ba6 {[%clk 0:01:26.8]} 24. Bxd3 {[%clk 0:02:03.2]} 24... Nxd3 {[%clk
0:01:27.7]} 25. Qa4 {[%clk 0:01:55.5]} 25... Ra8 {[%clk 0:01:01.9]} 26. Qc6
{[%clk 0:01:54.3]} 26... Qd8 {[%clk 0:00:47]} 27. Bd2 {[%clk 0:01:52.7]} 27...
Nxb2 {[%clk 0:00:38.9]} 28. Nc2 {[%clk 0:01:51.3]} 28... Qc8 {[%clk 0:00:29.1]}
29. Ra3 {[%clk 0:01:50.1]} 29... Bb7 {[%clk 0:00:19.8]} 30. Qxc8 {[%clk
0:01:48.6]} 30... Rxc8 {[%clk 0:00:18.9]} 31. Ne3 {[%clk 0:01:43.4]} 31... Nd3
{[%clk 0:00:16.3]} 32. Bc3 {[%clk 0:01:28.7]} 32... Nc5 {[%clk 0:00:15.8]} 33.
Nd2 {[%clk 0:01:27.6]} 33... Ba6 {[%clk 0:00:06.3]} 34. f3 {[%clk 0:01:27]}
34... Rb8 {[%clk 0:00:05.8]} 35. Ndxc4 {[%clk 0:01:24]} 35... Rb3 {[%clk
0:00:03.2]} 36. Rxb3 {[%clk 0:01:22.9]} 36... Nxb3 {[%clk 0:00:04.1]} 37. Bb4
{[%clk 0:01:22.4]} 37... Nd4 {[%clk 0:00:01.7]} 38. Bxd6 {[%clk 0:01:16.8]} 1-0

[Event "*** Titled Tuesday Blitz"]
[Site "Chess.com"]
[Date "2020.03.03"]
[Round "6"]
[White "Lovkov_Roman"]
[Black "Vegan4future"]
[Result "1-0"]
[WhiteElo "2692"]
[BlackElo "2532"]
[TimeControl "180+1"]
[EndTime "14:01:26 PST"]
[Termination "Lovkov_Roman won by resignation"]

1. e4 {[%clk 0:03:00.9]} 1... e5 {[%clk 0:02:59.4]} 2. Nf3 {[%clk 0:03:01]} 2...
d6 {[%clk 0:02:59.7]} 3. d4 {[%clk 0:03:01.1]} 3... exd4 {[%clk 0:03:00.6]} 4.
Nxd4 {[%clk 0:03:02]} 4... Nf6 {[%clk 0:03:01.1]} 5. Nc3 {[%clk 0:03:02.5]} 5...
Be7 {[%clk 0:03:01.5]} 6. Be2 {[%clk 0:03:03.1]} 6... O-O {[%clk 0:03:01.8]} 7.
O-O {[%clk 0:03:03.7]} 7... Re8 {[%clk 0:03:02.2]} 8. f4 {[%clk 0:03:04.1]} 8...
c5 {[%clk 0:02:59]} 9. Nf3 {[%clk 0:02:47.5]} 9... Nc6 {[%clk 0:02:17.3]} 10. h3
{[%clk 0:02:18.5]} 10... a6 {[%clk 0:02:12.9]} 11. e5 {[%clk 0:02:07.9]} 11...
dxe5 {[%clk 0:01:48.7]} 12. Qxd8 {[%clk 0:02:08.8]} 12... Bxd8 {[%clk
0:01:46.3]} 13. fxe5 {[%clk 0:01:58.4]} 13... Nxe5 {[%clk 0:01:47.2]} 14. Nxe5
{[%clk 0:01:55.1]} 14... Rxe5 {[%clk 0:01:48.1]} 15. Bf4 {[%clk 0:01:54.6]}
15... Re8 {[%clk 0:01:46.6]} 16. Bf3 {[%clk 0:01:52.6]} 16... h6 {[%clk
0:01:21.3]} 17. Rfe1 {[%clk 0:01:46.1]} 17... Rxe1+ {[%clk 0:01:19.4]} 18. Rxe1
{[%clk 0:01:47]} 18... Bb6 {[%clk 0:01:04.9]} 19. Nd5 {[%clk 0:01:38.3]} 19...
Nxd5 {[%clk 0:00:58.5]} 20. Bxd5 {[%clk 0:01:39.2]} 20... Bf5 {[%clk 0:00:38.4]}
21. Re7 {[%clk 0:01:30.1]} 21... Bg6 {[%clk 0:00:36.4]} 22. Rxb7 {[%clk
0:01:29.3]} 22... Ba5 {[%clk 0:00:34.3]} 23. c4 {[%clk 0:01:22.1]} 23... Re8
{[%clk 0:00:33.4]} 24. Kf2 {[%clk 0:01:11.2]} 24... Be1+ {[%clk 0:00:31.5]} 25.
Kf3 {[%clk 0:01:08.6]} 25... Bh5+ {[%clk 0:00:26.6]} 26. g4 {[%clk 0:01:08.2]}
26... Bg6 {[%clk 0:00:27.1]} 27. Ra7 {[%clk 0:01:01.5]} 27... Bh4 {[%clk
0:00:26.3]} 28. Rxa6 {[%clk 0:00:58.6]} 28... Bf6 {[%clk 0:00:26.4]} 29. b3
{[%clk 0:00:53.8]} 29... h5 {[%clk 0:00:25.6]} 30. g5 {[%clk 0:00:52.7]} 30...
Bd4 {[%clk 0:00:26.1]} 31. Rxg6 {[%clk 0:00:52.6]} 31... Re1 {[%clk 0:00:24.9]}
32. Ra6 {[%clk 0:00:42.6]} 32... Rh1 {[%clk 0:00:24.5]} 33. g6 {[%clk
0:00:37.6]} 33... Rxh3+ {[%clk 0:00:23.3]} 34. Kg2 {[%clk 0:00:35.4]} 1-0

[Event "*** Titled Tuesday Blitz"]
[Site "Chess.com"]
[Date "2020.03.03"]
[Round "6"]
[White "NM2019"]
[Black "ZEN-22"]
[Result "0-1"]
[WhiteElo "2031"]
[BlackElo "2410"]
[TimeControl "180+1"]
[EndTime "14:01:26 PST"]
[Termination "ZEN-22 won on time"]

1. c4 {[%clk 0:03:00.7]} 1... d5 {[%clk 0:02:56.2]} 2. cxd5 {[%clk 0:03:00.8]}
2... c6 {[%clk 0:02:57.1]} 3. dxc6 {[%clk 0:02:59.4]} 3... Nxc6 {[%clk 0:02:58]}
4. Nf3 {[%clk 0:02:59.9]} 4... e5 {[%clk 0:02:58.5]} 5. Nc3 {[%clk 0:02:59.7]}
5... f5 {[%clk 0:02:57.8]} 6. d3 {[%clk 0:02:58.3]} 6... Nf6 {[%clk 0:02:58]} 7.
g3 {[%clk 0:02:58.4]} 7... Bc5 {[%clk 0:02:58.5]} 8. Bg2 {[%clk 0:02:58.8]} 8...
e4 {[%clk 0:02:58.8]} 9. dxe4 {[%clk 0:02:43.5]} 9... Qxd1+ {[%clk 0:02:57.1]}
10. Nxd1 {[%clk 0:02:41.3]} 10... fxe4 {[%clk 0:02:58]} 11. Ng5 {[%clk
0:02:37.4]} 11... Nd4 {[%clk 0:02:57]} 12. O-O {[%clk 0:02:31.2]} 12... Nxe2+
{[%clk 0:02:55.9]} 13. Kh1 {[%clk 0:02:31.2]} 13... Bf5 {[%clk 0:02:54.7]} 14.
Re1 {[%clk 0:02:25.5]} 14... Nxc1 {[%clk 0:02:49.6]} 15. Rxc1 {[%clk 0:02:23.5]}
15... Bb4 {[%clk 0:02:49.9]} 16. Nc3 {[%clk 0:02:21.2]} 16... O-O {[%clk
0:02:45.2]} 17. Kg1 {[%clk 0:02:03.6]} 17... Rae8 {[%clk 0:02:31.8]} 18. a3
{[%clk 0:02:03.4]} 18... Ba5 {[%clk 0:02:29.4]} 19. b4 {[%clk 0:01:58.4]} 19...
Bb6 {[%clk 0:02:29.3]} 20. Na4 {[%clk 0:01:53.4]} 20... Bd4 {[%clk 0:02:28.2]}
21. Rcd1 {[%clk 0:01:51]} 21... Bxf2+ {[%clk 0:02:24.8]} 22. Kxf2 {[%clk
0:01:50.1]} 22... Bg4 {[%clk 0:02:23.1]} 23. Kg1 {[%clk 0:01:39.5]} 23... Bxd1
{[%clk 0:02:22.1]} 24. Rxd1 {[%clk 0:01:38.6]} 24... e3 {[%clk 0:02:23]} 25. h3
{[%clk 0:01:28.9]} 25... h6 {[%clk 0:02:22.4]} 26. Nf3 {[%clk 0:01:26.7]} 26...
Ne4 {[%clk 0:02:22.7]} 27. Kh2 {[%clk 0:01:22.9]} 27... Nf2 {[%clk 0:02:16.9]}
28. Re1 {[%clk 0:01:14.3]} 28... Nd3 {[%clk 0:02:16.2]} 29. Re2 {[%clk
0:01:10.9]} 29... Nc1 {[%clk 0:02:15.7]} 30. Rc2 {[%clk 0:01:08.7]} 30... Nd3
{[%clk 0:02:13.4]} 31. Re2 {[%clk 0:01:01]} 31... g5 {[%clk 0:02:11.6]} 32. Nc5
{[%clk 0:00:59.5]} 32... Nf2 {[%clk 0:02:03.6]} 33. Nxb7 {[%clk 0:00:53.3]}
33... g4 {[%clk 0:02:00.6]} 34. Nd4 {[%clk 0:00:34.7]} 34... gxh3 {[%clk
0:01:59.3]} 35. Bxh3 {[%clk 0:00:32.8]} 35... Nd3 {[%clk 0:01:58.1]} 36. Nf5
{[%clk 0:00:26.1]} 36... Nf2 {[%clk 0:01:47.7]} 37. Rxe3 {[%clk 0:00:10.7]}
37... Rxe3 {[%clk 0:01:46]} 38. Nxe3 {[%clk 0:00:10.3]} 38... Rf3 {[%clk
0:01:46.9]} 39. Ng4 {[%clk 0:00:02.5]} 39... Nxh3 {[%clk 0:01:40.3]} 40. Kxh3
{[%clk 0:00:02.4]} 40... Rxa3 {[%clk 0:01:41.2]} 41. Nxh6+ {[%clk 0:00:02.8]}
41... Kh7 {[%clk 0:01:41.8]} 42. Nf5 {[%clk 0:00:03.3]} 42... Rb3 {[%clk
0:01:42.7]} 43. Nc5 {[%clk 0:00:02.4]} 43... Rxb4 {[%clk 0:01:42.7]} 44. Ne7
{[%clk 0:00:01.8]} 44... a5 {[%clk 0:01:41.7]} 0-1

[Event "*** Titled Tuesday Blitz"]
[Site "Chess.com"]
[Date "2020.03.03"]
[Round "6"]
[White "Rodalquilar"]
[Black "Amirreza_p"]
[Result "1-0"]
[WhiteElo "2623"]
[BlackElo "2774"]
[TimeControl "180+1"]
[EndTime "14:01:28 PST"]
[Termination "Rodalquilar won on time"]

1. d4 {[%clk 0:03:00.9]} 1... d5 {[%clk 0:02:58.1]} 2. Bf4 {[%clk 0:03:01.2]}
2... c5 {[%clk 0:02:57.6]} 3. e3 {[%clk 0:03:01.7]} 3... Nc6 {[%clk 0:02:56.6]}
4. Nf3 {[%clk 0:03:01.5]} 4... cxd4 {[%clk 0:02:54.8]} 5. exd4 {[%clk
0:03:02.4]} 5... Bg4 {[%clk 0:02:54.8]} 6. c3 {[%clk 0:03:01.9]} 6... e6 {[%clk
0:02:54.6]} 7. Nbd2 {[%clk 0:03:02.3]} 7... Nf6 {[%clk 0:02:51.2]} 8. Bd3 {[%clk
0:03:01.9]} 8... Bd6 {[%clk 0:02:48.7]} 9. Bxd6 {[%clk 0:03:02.1]} 9... Qxd6
{[%clk 0:02:47]} 10. O-O {[%clk 0:03:03]} 10... O-O {[%clk 0:02:44.7]} 11. Re1
{[%clk 0:03:03.3]} 11... Rab8 {[%clk 0:02:37.3]} 12. a4 {[%clk 0:03:02.9]} 12...
Qc7 {[%clk 0:02:31.4]} 13. Qb1 {[%clk 0:02:53.7]} 13... Bh5 {[%clk 0:02:20.5]}
14. Ne5 {[%clk 0:02:50.3]} 14... Bg6 {[%clk 0:02:19.2]} 15. Nxg6 {[%clk
0:02:46.4]} 15... hxg6 {[%clk 0:02:20.1]} 16. Nf3 {[%clk 0:02:46.8]} 16... Qf4
{[%clk 0:02:10.7]} 17. Qd1 {[%clk 0:02:36.8]} 17... Nd7 {[%clk 0:02:09.1]} 18.
g3 {[%clk 0:02:36.6]} 18... Qf6 {[%clk 0:02:08.5]} 19. Kg2 {[%clk 0:02:35.9]}
19... a6 {[%clk 0:02:08]} 20. h4 {[%clk 0:02:34.3]} 20... Rfe8 {[%clk
0:02:06.6]} 21. Qb3 {[%clk 0:02:16.8]} 21... Re7 {[%clk 0:01:27.4]} 22. Re2
{[%clk 0:02:15.7]} 22... Rbe8 {[%clk 0:01:16.6]} 23. Rae1 {[%clk 0:02:15.6]}
23... Rb8 {[%clk 0:01:09.1]} 24. Nh2 {[%clk 0:02:00]} 24... Ree8 {[%clk
0:00:59.8]} 25. f4 {[%clk 0:01:53.7]} 25... Qd8 {[%clk 0:00:55.5]} 26. Nf3
{[%clk 0:01:51.7]} 26... b5 {[%clk 0:00:53.4]} 27. axb5 {[%clk 0:01:51.2]} 27...
axb5 {[%clk 0:00:53.8]} 28. Qc2 {[%clk 0:01:49.9]} 28... b4 {[%clk 0:00:52.8]}
29. Ng5 {[%clk 0:01:50]} 29... Nf8 {[%clk 0:00:48.6]} 30. h5 {[%clk 0:01:47.5]}
30... bxc3 {[%clk 0:00:39.5]} 31. hxg6 {[%clk 0:01:31.7]} 31... fxg6 {[%clk
0:00:27.6]} 32. Bxg6 {[%clk 0:01:28.6]} 32... Nxg6 {[%clk 0:00:03.1]} 33. Qxg6
{[%clk 0:01:27.5]} 33... Rxb2 {[%clk 0:00:02.3]} 34. Qf7+ {[%clk 0:01:24.7]} 1-0

[Event "*** Titled Tuesday Blitz"]
[Site "Chess.com"]
[Date "2020.03.03"]
[Round "6"]
[White "Region_07"]
[Black "RemcoSpr"]
[Result "1-0"]
[WhiteElo "2403"]
[BlackElo "2258"]
[TimeControl "180+1"]
[EndTime "14:01:31 PST"]
[Termination "Region_07 won by resignation"]

1. d4 {[%clk 0:03:00.9]} 1... Nf6 {[%clk 0:02:59.7]} 2. Bg5 {[%clk 0:03:01]}
2... Ne4 {[%clk 0:02:59.6]} 3. h4 {[%clk 0:03:01]} 3... c5 {[%clk 0:02:58.1]} 4.
dxc5 {[%clk 0:03:00.1]} 4... Nxc5 {[%clk 0:02:54.3]} 5. Nd2 {[%clk 0:02:58.8]}
5... d5 {[%clk 0:02:45.8]} 6. Ngf3 {[%clk 0:02:47.7]} 6... f6 {[%clk 0:02:45.5]}
7. Be3 {[%clk 0:02:47.3]} 7... e5 {[%clk 0:02:45.3]} 8. Bxc5 {[%clk 0:02:46]}
8... Bxc5 {[%clk 0:02:46.2]} 9. e3 {[%clk 0:02:46.3]} 9... Nc6 {[%clk 0:02:45]}
10. Nb3 {[%clk 0:02:46.5]} 10... Bb6 {[%clk 0:02:40.6]} 11. h5 {[%clk
0:02:43.9]} 11... Bf5 {[%clk 0:02:33.8]} 12. Nh4 {[%clk 0:02:40.5]} 12... Be6
{[%clk 0:02:31.2]} 13. Bd3 {[%clk 0:02:39.4]} 13... e4 {[%clk 0:02:16.8]} 14.
Bb5 {[%clk 0:02:33.8]} 14... a6 {[%clk 0:02:04.7]} 15. Ba4 {[%clk 0:02:32.7]}
15... Rc8 {[%clk 0:01:53.8]} 16. c3 {[%clk 0:02:26.5]} 16... O-O {[%clk
0:01:51.9]} 17. Bxc6 {[%clk 0:02:22.1]} 17... bxc6 {[%clk 0:01:51.2]} 18. Nd4
{[%clk 0:02:22.6]} 18... Qd7 {[%clk 0:01:40]} 19. Qa4 {[%clk 0:02:08.1]} 19...
c5 {[%clk 0:01:17.6]} 20. Qxd7 {[%clk 0:02:06.9]} 20... Bxd7 {[%clk 0:01:18.5]}
21. Ndf5 {[%clk 0:02:05.9]} 21... Rce8 {[%clk 0:01:13.3]} 22. O-O-O {[%clk
0:02:01]} 22... Re5 {[%clk 0:01:12.3]} 23. g4 {[%clk 0:02:01.5]} 23... Kf7
{[%clk 0:00:59.2]} 24. c4 {[%clk 0:01:49.8]} 24... g6 {[%clk 0:00:54.2]} 25.
hxg6+ {[%clk 0:01:41.8]} 25... hxg6 {[%clk 0:00:55.1]} 26. Nd6+ {[%clk
0:01:26.1]} 26... Kg7 {[%clk 0:00:53.5]} 27. cxd5 {[%clk 0:01:20.6]} 27... Bxg4
{[%clk 0:00:50.5]} 28. Rdg1 {[%clk 0:01:18.6]} 28... f5 {[%clk 0:00:47.2]} 29.
Nc4 {[%clk 0:01:07]} 29... Rxd5 {[%clk 0:00:38.2]} 30. Nxb6 {[%clk 0:01:06.7]}
30... Rd3 {[%clk 0:00:33]} 31. Nc4 {[%clk 0:01:03.5]} 31... Kf6 {[%clk
0:00:32.9]} 32. Kc2 {[%clk 0:00:51.7]} 32... Rfd8 {[%clk 0:00:29.4]} 33. Ng2
{[%clk 0:00:42.8]} 33... Bd1+ {[%clk 0:00:23.8]} 34. Rxd1 {[%clk 0:00:41.1]} 1-0